Cogmind - Beta 15 @@@ ROGUE MODE // 2025.06.21 @ 18:14:51 Player: LameThyst Result: Destroyed by P-70 Sage with Tesla Rifle Performance ------------- Evolutions (5) 2500 Regions Visited (6) 1200 Robots Destroyed (74) 370 Value Destroyed (2464) 2464 Prototype IDs (4) 80 Alien Tech Used (0) 0 Bonus (0) 0 TOTAL SCORE: 6614 Bonus ------- None Cogmind --------- Core Integrity 0/1000 Matter 300/300 Energy 100/100 System Corruption 20% Temperature Cool (0) Movement Core (350) Ox6 Location -5/Factory Parts ------- > --- POWER (2) -------- (None) > --- PROPULSION (6) --- (None) > --- UTILITY (6) ------ Large Storage Unit > --- WEAPON (3) ------- (None) > --- INVENTORY (15) --- Machine Analyzer Improved Target Analyzer Peak State ------------ > --- POWER ------------ F-cell Engine F-cell Engine > --- PROPULSION ------- Improved Treads Advanced Treads Medium Treads Medium Treads Medium Treads Medium Treads > --- UTILITY ---------- Advanced Heat Sink Large Storage Unit Improved Targeting Computer Improved Particle Charger Medium Insulated Plating Hacking Suite > --- WEAPON ----------- Beamcaster Heavy Ion Cannon Advanced Assault Cannon > --- INVENTORY -------- Improved Deuterium Engine Light Angular Momentum Engine Light Treads Light Armor Plating Focal Shield Precision Beam Rifle Heavy Laser Heavy Assault Rifle Heavy Assault Rifle High-powered Shotgun Advanced Assault Cannon Mini Grenade Launcher Remote Datajack [Rating: 70] Favorites ----------- Power F-cell Engine Engine F-cell Engine Power Core Micro Nuclear Core Propulsion Medium Treads Treads Medium Treads Leg Aluminum Leg Wheel Wheel Flight Unit Flight Unit Utility Large Storage Unit Device Focal Shield Storage Large Storage Unit Processor Targeting Computer Hackware Hacking Suite Protection Medium Insulated Plating Weapon Subdweller Machine Gun Energy Gun Precision Beam Rifle Energy Cannon Heavy Ion Cannon Ballistic Gun Subdweller Machine Gun Ballistic Cannon Advanced Assault Cannon Launcher Mini Grenade Launcher Special Weapon Remote Datajack Build | -11 -10 -10 -8 -7 -6 -5 ------- Run | Yrd Mat Sub Mat Fac Fac Fac Slots Evolved 10 | . . . 4 2 2 2 Power 1 | . . . . 1 . . Propulsion 4 | . . . 2 1 . 1 Utility 4 | . . . 1 . 2 1 Weapon 1 | . . . 1 . . . Parts Attached 88 | 6 11 9 20 5 13 24 Power 13 | 1 1 2 2 2 2 3 Engine 9 | 1 1 2 . 2 2 1 Core 4 | . . . 2 . . 2 Reactor . | . . . . . . . Propulsion 22 | 2 4 1 8 1 1 5 Treads 12 | . . . 8 1 1 2 Leg 6 | . 2 1 . . . 3 Wheel 2 | 2 . . . . . . Hover . | . . . . . . . Flight 2 | . 2 . . . . . Utility 25 | 1 2 2 4 1 5 10 Device 10 | . 1 1 . . 3 5 Storage 5 | 1 1 . 1 . . 2 Processor 4 | . . 1 . . 2 1 Hackware 1 | . . . . . . 1 Protection 5 | . . . 3 1 . 1 Artifact . | . . . . . . . Weapon 28 | 2 4 4 6 1 5 6 Energy Gun 11 | . 4 1 2 . 2 2 Energy Cannon 1 | . . . . . 1 . Ballistic Gun 11 | 2 . 2 2 1 . 4 Ballistic Cannon 2 | . . . . . 2 . Launcher 1 | . . 1 . . . . Special Weapon 2 | . . . 2 . . . Impact Weapon . | . . . . . . . Slashing Weapon . | . . . . . . . Piercing Weapon . | . . . . . . . Special Melee Weapon . | . . . . . . . Unidentified Prototypes 4 | . 1 . 2 . 1 . Parts Lost 52 | . . 3 2 . . 47 Power 6 | . . . . . . 6 Propulsion 14 | . . 2 1 . . 11 Utility 16 | . . . 1 . . 15 Weapon 16 | . . 1 . . . 15 Highest Loss Streak 10 | . . 2 2 . . 10 To Critical Strikes 1 | . . . . . . 1 Average Backups 10 | 3 8 9 10 13 14 10 Power 1 | . . . 1 1 1 1 Propulsion . | 1 2 . . . . . Utility 3 | . 2 3 2 6 2 3 Weapon 4 | . 2 4 4 5 8 4 Tool/Special . | . . . . . . . Unused Backups 20 | . 5 3 2 3 3 4 Power 1 | . . . . 1 . . Propulsion 2 | . 2 . . . . . Utility 8 | . 1 1 1 1 1 3 Weapon 9 | . 2 2 1 1 2 1 Tool/Special . | . . . . . . . Average Slot Usage (%) 84 | . 95 97 85 99 99 61 Engine 8 | . 14 14 6 10 13 4 Core 1 | . . . 2 3 . 1 Treads 15 | . . . 19 37 33 7 Leg 6 | . 12 26 3 . . 4 Wheel 1 | . 14 . . . . . Device 7 | . 9 8 . . 7 15 Storage 8 | . 14 14 9 7 6 5 Processor 6 | . . 5 9 7 11 4 Protection 3 | . . . 8 7 6 . Energy Gun 5 | . 11 3 6 7 3 2 Energy Cannon 1 | . . . . . 3 2 Ballistic Gun 11 | . 16 22 18 15 6 2 Ballistic Cannon 1 | . . . . . 4 1 Peak Build Rating 70 | 6 11 12 35 42 65 70 Average Rating 31 | 4 8 9 20 40 55 43 On Entrance 23 | . 6 10 9 35 42 65 Naked Turns . | . . . . . . . Heaviest Build 75 | 11 19 21 38 56 75 75 Greatest Support 157 | 20 20 20 106 129 135 157 Greatest Overweight (x) 14 | 1 4 1 6 . . 14 Average Overweight (x) . | . . . . . . 2 Largest Inventory Capacity 15 | 8 10 10 15 15 15 15 Average Capacity 12 | 7 9 10 10 15 15 15 Most Carried 15 | 6 10 10 15 15 15 15 Average Carried 10 | 3 8 9 10 14 14 10 Final Capacity 15 | 8 10 10 15 15 15 15 Final Carried 15 | 6 10 10 15 15 15 2 Class Distribution -------------------- 30% | Gunner 29% | Scavenger-Gunner 27% | Mutant 9% | Scavenger-Mutant Dominant Class ---------------- Mutant | -10/Materials Mutant | -10/Subcaves Gunner | -8/Materials Gunner | -7/Factory Scavenger-Gunner | -6/Factory Scavenger-Gunner | -5/Factory Resources | -11 -10 -10 -8 -7 -6 -5 ----------- Run | Yrd Mat Sub Mat Fac Fac Fac Matter Collected 2540 | 236 203 225 416 72 361 1027 Remotely . | . . . . . . . Salvage Created 2897 | . 227 139 368 60 663 1440 Parts 134 | . 14 11 18 3 32 56 Haulers Intercepted 7 | . 1 . 2 . 2 2 Recyclers Shooed 4 | . 1 . 1 . . 2 Parts Field Recycled . | . . . . . . . Retrieved Matter . | . . . . . . . Parts Self-Destructed . | . . . . . . . Prevented . | . . . . . . . Kills | -11 -10 -10 -8 -7 -6 -5 ------- Run | Yrd Mat Sub Mat Fac Fac Fac Combat Hostiles Destroyed 52 | . 5 6 8 1 14 18 Guns 21 | . 5 3 4 1 1 7 Cannons 19 | . . . . . 13 6 AOE 12 | . . 3 4 . . 5 Classes Destroyed 13 | . 4 1 2 . 1 5 Worker 4 | . . . . . 1 3 Builder 3 | . . . . . . 3 Hauler 7 | . 1 . 2 . 2 2 Recycler 5 | . 1 . 1 . . 3 Mechanic 1 | . . . . . . 1 Watcher 2 | . 1 . . . . 1 Swarmer 16 | . 5 . 4 . 7 . Grunt 16 | . . . 2 . 6 8 Sentry 4 | . . . 2 1 1 . Hunter 5 | . . . . . . 5 Programmer 3 | . . . . . . 3 Heavy 2 | . . . . . . 2 Subdweller 6 | . . 6 . . . . Best Kill Streak 7 | . 3 2 4 1 7 5 Combat Bots Only 7 | . 3 2 4 1 7 3 Max Kills in Single Turn 3 | . 1 1 3 1 2 3 Gunslinging . | . . . . . . . Exploded 3 | . . 1 3 . . 2 Melee . | . . . . . . . Uniques/NPCs Destroyed . | . . . . . . . Combat | -11 -10 -10 -8 -7 -6 -5 -------- Run | Yrd Mat Sub Mat Fac Fac Fac Hostile Shots Fired 499 | . 19 29 24 42 93 292 Missed 136 | . 6 9 6 18 29 68 Hits 363 | . 13 20 18 24 64 224 Projectile 363 | . 13 20 18 24 64 224 AOE 4 | . . 4 . . . . Critical Strikes 14 | . . . 1 . 4 9 Damage Taken 6794 | . 107 671 265 221 877 4653 Core 1352 | . 30 161 66 36 59 1000 Absorbed by Shields . | . . . . . . . Ignored by Resistances 525 | . . . . . . 525 Regen/Repaired (Parts) 84 | . . . 84 . . . Core Remaining (%) 79 | 100 . 23 88 94 93 . Volleys Fired 181 | . 23 18 15 3 34 88 Largest 3 | . 2 2 3 3 3 3 Hottest 180 | . 76 80 114 114 174 180 Shots Fired 433 | . 46 36 39 9 102 201 Gun 249 | . 46 28 32 9 37 97 Cannon 141 | . . . . . 65 76 Launcher 39 | . . 8 5 . . 26 Special 4 | . . . 2 . . 2 Kinetic 229 | . 23 26 26 6 66 82 Thermal 160 | . 23 1 6 3 36 91 Explosive 39 | . . 8 5 . . 26 Electromagnetic 1 | . . 1 . . . . Robot Hit Streak 21 | . 5 9 10 11 13 21 Robot Miss Streak 7 | . 7 2 2 1 4 4 Penetration Max 1 | . . . . . . 1 Secondary Targets 3 | . 2 . . . . 1 Max Gunslinging Chain 1 | . 1 . . . . 1 Shots Hit Robots 298 | . 24 25 24 8 70 147 Core Hits 157 | . 11 13 17 4 29 83 Critical Kills . | . . . . . . . Critical Parts Destroyed 1 | . . . . . . 1 Critical Strikes 10 | . 1 . 1 . 2 6 Burn 6 | . 1 . 1 . 1 3 Destroy 1 | . . . . . . 1 Blast 3 | . . . . . 1 2 Melee Attacks . | . . . . . . . Impact . | . . . . . . . Slashing . | . . . . . . . Piercing . | . . . . . . . Sneak Attacks . | . . . . . . . Combat Hostiles . | . . . . . . . Follow-up Attacks . | . . . . . . . Damage Inflicted 7985 | . 339 710 673 143 1745 4375 Guns 3037 | . 339 225 319 139 419 1596 Cannons 2736 | . . . . . 1326 1410 Explosions 2201 | . . 485 354 . . 1362 Melee . | . . . . . . . Ramming 11 | . . . . 4 . 7 Kinetic 2995 | . 150 193 268 87 974 1323 Thermal 2874 | . 189 14 51 52 771 1797 Explosive 1973 | . . 485 354 . . 1134 Electromagnetic 132 | . . 18 . . . 114 Impact . | . . . . . . . Slashing . | . . . . . . . Piercing . | . . . . . . . Highest Corruption 19 | . . . . . . 19 Average Corruption 3 | . . . . . . 3 Corruption Purged . | . . . . . . . Corruption Blocked . | . . . . . . . Effects 14 | . . . . . . 14 Message Errors 2 | . . . . . . 2 Matter Fused 5 | . . . . . . 5 Heat Flow Errors 3 | . . . . . . 3 Energy Discharges 3 | . . . . . . 3 Data Loss (minor) 1 | . . . . . . 1 Overload Shots . | . . . . . . . Overflow Damage 146 | . . 22 11 . 27 86 Projectiles 51 | . . . . . 27 24 Explosions 95 | . . 22 11 . . 62 Melee . | . . . . . . . Knockbacks 11 | . . . . . 4 7 Impact . | . . . . . . . Kinetic 11 | . . . . . 4 7 Secondary . | . . . . . . . Self-Inflicted Damage 449 | . . 117 . . . 332 Shots 15 | . . 3 . . . 12 Rammed 12 | . . . . 1 . 11 Targets Rammed 12 | . . . . 1 . 11 Kicked . | . . . . . . . Crushed . | . . . . . . . Highest Temperature 279 | . 90 . 51 138 279 240 Average Temperature 55 | . 26 . 17 60 83 56 Received Heat Transfer 942 | . 6 81 126 18 306 405 Effects 1 | . . . . . 1 . Energy Bleed 1 | . . . . . 1 . Siege Activations . | . . . . . . . Martial Activations . | . . . . . . . Shielding Activations . | . . . . . . . Robots Disrupted . | . . . . . . . Combat Hostiles . | . . . . . . . Robots Corrupted . | . . . . . . . Combat Hostiles . | . . . . . . . Parts Fried . | . . . . . . . Impact Corruptions . | . . . . . . . Robots Melted . | . . . . . . . Combat Hostiles . | . . . . . . . Parts Melted 9 | . . . . . 1 8 Heat Transferred 5071 | . 555 37 185 111 1221 2962 Parts Sabotaged . | . . . . . . . Parts Stolen . | . . . . . . . Parts Stripped . | . . . . . . . Power Chain Reactions 2 | . . . . . . 2 Alert | -11 -10 -10 -8 -7 -6 -5 ------- Run | Yrd Mat Sub Mat Fac Fac Fac Maximum Alert Level 1 | . . . . . 1 1 Low Security (%) 87 | 100 100 . 100 100 55 82 Level 1 12 | . . . . . 44 17 Level 2 . | . . . . . . . Level 3 . | . . . . . . . Level 4 . | . . . . . . . Level 5 . | . . . . . . . High Security . | . . . . . . . Max Security . | . . . . . . . Peak Influence 300 | . 60 . 188 30 300 231 Initial 117 | . . . . 8 . 117 Average 87 | . 14 . 84 1 126 145 Influence Increases 1833 | . 169 . 339 30 421 874 Destroy 0b10 Robot/C 920 | . 100 . 160 20 280 360 Destroy 0b10 Robot/NC 110 | . 15 . 15 . 15 65 Destroy Leader 228 | . 24 . 44 10 44 106 Successful Hack 33 | . . . 21 . 12 . Disable Machine 135 | . . . 60 . 15 60 Destroy Structure 302 | . . . 24 . 10 268 Partial Spotted 30 | . 30 . . . . . Lose Combat Pursuer 75 | . . . 15 . 45 15 Influence Decreases 1818 | . 143 26 320 49 180 1100 Entered New Map 149 | . . 14 . 11 . 124 Time Decay 1179 | . 143 12 300 38 180 506 Lost Part 490 | . . . 20 . . 470 Squads Dispatched 13 | . 1 . 2 . 4 6 Investigation 1 | . . . . . 1 . Extermination 2 | . . . . . . 2 Reinforcement 10 | . 1 . 2 . 3 4 Assault . | . . . . . . . Garrison . | . . . . . . . Intercept . | . . . . . . . Searches Triggered . | . . . . . . . Construction Impeded 1 | . . . . . . 1 Haulers Reinforced 1 | . . . . . 1 . Active Scanning Responses . | . . . . . . . Cargo Convoy Interrupts . | . . . . . . . Stealth | -11 -10 -10 -8 -7 -6 -5 --------- Run | Yrd Mat Sub Mat Fac Fac Fac Distress Signals 9 | . 2 . 3 . 3 1 Communications Jammed . | . . . . . . . Distress Signals . | . . . . . . . Times Spotted 93 | . 12 7 19 7 20 28 Peak Tracking Total 5 | . 4 2 5 4 5 3 Tactical Retreats 4 | . . . 1 . 2 1 Traps | -11 -10 -10 -8 -7 -6 -5 ------- Run | Yrd Mat Sub Mat Fac Fac Fac Traps Triggered 3 | . . . 2 . 1 . Indirectly . | . . . . . . . Trap Hack Attempts . | . . . . . . . Triggered . | . . . . . . . Disarmed . | . . . . . . . Reprogrammed . | . . . . . . . Reused . | . . . . . . . Traps Extracted . | . . . . . . . Installed . | . . . . . . . Triggered . | . . . . . . . Machines | -11 -10 -10 -8 -7 -6 -5 ---------- Run | Yrd Mat Sub Mat Fac Fac Fac Machines Disabled 9 | . . . 4 . 1 4 Max in Single Turn 1 | . . . 1 . 1 1 Machines Repaired . | . . . . . . . Machines Dismantled . | . . . . . . . Machines Sabotaged . | . . . . . . . Overloaded Fab Kills . | . . . . . . . Hacking | -11 -10 -10 -8 -7 -6 -5 --------- Run | Yrd Mat Sub Mat Fac Fac Fac Machines Accessed 12 | . 4 . 5 . 2 1 Terminals 9 | . 4 . 3 . 1 1 Fabricators 1 | . . . . . 1 . Repair Stations 1 | . . . 1 . . . Recycling Units . | . . . . . . . Scanalyzers 1 | . . . 1 . . . Garrison Access . | . . . . . . . Total Hacks 32 | . 8 . 16 . 6 2 Successful 16 | . 1 . 12 . 2 1 Failed 15 | . 7 . 3 . 4 1 Catastrophic 1 | . . . . . 1 . Database Lockouts 1 | . . . 1 . . . Manual . | . . . . . . . Terminals 21 | . 8 . 8 . 3 2 Fabricators 3 | . . . . . 3 . Repair Stations 5 | . . . 5 . . . Recycling Units . | . . . . . . . Scanalyzers 3 | . . . 3 . . . Garrison Access . | . . . . . . . Terminal Hacks 7 | . 1 . 5 . . 1 Record 4 | . . . 4 . . . Open DSF 1 | . . . . . . 1 Emergency Access Points 1 | . . . 1 . . . Zone Layout 1 | . 1 . . . . . Fabricator Hacks 2 | . . . . . 2 . Load Schematic 1 | . . . . . 1 . Build 1 | . . . . . 1 . Repair Station Hacks 4 | . . . 4 . . . Scan Component 2 | . . . 2 . . . Repair 2 | . . . 2 . . . Recycling Unit Hacks . | . . . . . . . Scanalyzer 3 | . . . 3 . . . Insert Component 1 | . . . 1 . . . Analyze 2 | . . . 2 . . . Garrison Access Hacks . | . . . . . . . Unauthorized Hacks . | . . . . . . . Terminals . | . . . . . . . Fabricators . | . . . . . . . Repair Stations . | . . . . . . . Recycling Units . | . . . . . . . Scanalyzers . | . . . . . . . Garrison Access . | . . . . . . . Data Cores Recovered . | . . . . . . . Used . | . . . . . . . Hacking Detections 10 | . 4 . 4 . 2 . Full Trace Events 1 | . . . . . 1 . Feedback Events . | . . . . . . . Feedback Blocked . | . . . . . . . Robot Schematics Acquired . | . . . . . . . Robots Built . | . . . . . . . Authchips . | . . . . . . . Time . | . . . . . . . Total Robot Build Rating . | . . . . . . . Part Schematics Acquired 1 | . . . 1 . . . Parts Built 1 | . . . . . 1 . Authchips . | . . . . . . . Time 31 | . . . . . 31 . Total Part Build Rating 2 | . . . . . 2 . Parts Repaired 2 | . . . 2 . . . Time 76 | . . . 76 . . . Parts Recycled . | . . . . . . . Recycled Matter . | . . . . . . . Retrieved Matter . | . . . . . . . Retrieved Components . | . . . . . . . Parts Scanalyzed 1 | . . . 1 . . . Part Schematics Acquired 1 | . . . 1 . . . Parts Damaged . | . . . . . . . Bothacking | -11 -10 -10 -8 -7 -6 -5 ------------ Run | Yrd Mat Sub Mat Fac Fac Fac Used RIF Installer . | . . . . . . . Robots Hacked 2 | . . . 1 . . 1 Non-combat . | . . . . . . . Combat 2 | . . . 1 . . 1 Robot Hacks Applied 3 | . . . 2 . . 1 parse_system 3 | . . . 2 . . 1 Relay Couplers Released 3 | . . . . 3 . . Programmers 3 | . . . . 3 . . Fabnet Peak Effective % . | . . . . . . . Robots Rewired . | . . . . . . . Allies Hacked . | . . . . . . . Hacks Repelled . | . . . . . . . Allies | -11 -10 -10 -8 -7 -6 -5 -------- Run | Yrd Mat Sub Mat Fac Fac Fac Total Allies . | . . . . . . . Largest Group . | . . . . . . . Highest-Rated Group . | . . . . . . . Highest-Rated Ally . | . . . . . . . Total Orders . | . . . . . . . Ally Attacks . | . . . . . . . Total Damage . | . . . . . . . Kills . | . . . . . . . Allies Corrupted . | . . . . . . . Allies Melted . | . . . . . . . Intel | -11 -10 -10 -8 -7 -6 -5 ------- Run | Yrd Mat Sub Mat Fac Fac Fac Active Infowar (turns) 669 | . . 201 . . 468 . Optics 201 | . . 201 . . . . T.N.C. 468 | . . . . . 468 . Robot Analysis Total . | . . . . . . . Derelict Logs Recovered . | . . . . . . . Drone Launches . | . . . . . . . Drone Recoveries . | . . . . . . . Exploration | -11 -10 -10 -8 -7 -6 -5 ------------- Run | Yrd Mat Sub Mat Fac Fac Fac Turns Passed 4669 | 86 567 479 955 592 627 1363 Spaces Moved 2279 | 88 473 281 424 346 298 369 Core 75 | 7 . . 2 . . 66 Treads 1159 | . . . 311 346 298 204 Legs 644 | . 153 281 111 . . 99 Wheels 397 | 81 316 . . . . . Hover . | . . . . . . . Flight 4 | . 4 . . . . . Fastest Speed 50 | 50 80 120 156 157 157 120 Average Speed 158 | 79 95 140 184 157 159 240 Slowest Speed 750 | 100 360 190 350 157 160 750 Overloaded Moves . | . . . . . . . Propulsion Burnouts . | . . . . . . . Robots Hopped . | . . . . . . . Potential Cave-ins . | . . . . . . . Cave-ins Triggered . | . . . . . . . Exploration Rate (%) 20 | 4 49 23 40 12 10 7 Regions Visited 6 Branch Regions 1 Pre-discovered Areas . | . . . . . . . Known Exits Taken . | . . . . . . . Unknown Exits Taken 6 | 1 1 1 1 1 1 . Scrap Searched 3 | . . 3 . . . . Spaces Dug . | . . . . . . . Terrain Destroyed 235 | . . 49 23 . 6 157 Melee . | . . . . . . . Projectile 18 | . . . 1 . 6 11 AOE 217 | . . 49 22 . . 146 Terrain Rammed . | . . . . . . . Walls Destroyed . | . . . . . . . Machines Disabled . | . . . . . . . Actions | -11 -10 -10 -8 -7 -6 -5 --------- Run | Yrd Mat Sub Mat Fac Fac Fac Total 2935 | 100 549 330 570 390 375 621 Wait 202 | . 5 2 71 25 11 88 Move 2273 | 87 472 280 423 345 297 369 Hop . | . . . . . . . Pick Up 75 | 7 19 7 15 5 8 14 Fast Attach 25 | 5 3 1 7 . 1 8 Attach 46 | 1 3 5 4 2 2 29 Detach 9 | . 1 2 2 . 1 3 Swap 56 | . 5 9 17 4 12 9 Drop 56 | . 18 6 16 5 9 2 Fire 181 | . 23 18 15 3 34 88 Melee . | . . . . . . . Ram 11 | . . . . . . 11 Kick . | . . . . . . . Crush 1 | . . . . 1 . . Escape Stasis . | . . . . . . . Rewire . | . . . . . . . Trap . | . . . . . . . Miscellaneous . | . . . . . . . Route ------- -11/Scrapyard -10/Materials (discovered 2 exits: [*Min] / [*Sub]) -10/Subcaves (discovered 2 exits: *Mat x2) -8/Materials -7/Factory -6/Factory -5/Factory (discovered 1 exit: [*Fac]) History --------- Turn | Location | Event 10 | -11/Scrapyard | Discovered new exit (range 15) 87 | -11/Scrapyard | Entered Materials 330 | -10/Materials | Build established: Mutant 461 | -10/Materials | Discovered new exit (range 16) 637 | -10/Materials | Discovered new exit (range 9) 654 | -10/Materials | Entered Subcaves 719 | -10/Subcaves | Discovered new exit (range 7) 1011 | -10/Subcaves | Disturbed a concealed Subdweller 1013 | -10/Subcaves | Core integrity fell below 50% 1014 | -10/Subcaves | Ambushed by Subdweller buried in earth 1051 | -10/Subcaves | Discovered new exit (range 8) 1080 | -10/Subcaves | Disturbed a concealed Subdweller 1133 | -10/Subcaves | Entered Materials 1133 | -8/Materials | Evolved 4 slots: Propulsion x2, Utility x1, Weapon x1 1272 | -8/Materials | Repaired Mni. Grenade Launcher 1320 | -8/Materials | Repaired Broken Sub. Power Source 1459 | -8/Materials | Build established: Gunner 1623 | -8/Materials | Central database locked down 1698 | -8/Materials | Met 7R-MNS 2022 | -8/Materials | Discovered new exit (range 16) 2088 | -8/Materials | Entered Factory 2088 | -7/Factory | Evolved 2 slots: Power x1, Propulsion x1 2089 | -7/Factory | Caught up to 7R-MNS 2655 | -7/Factory | Discovered new exit (range 16) 2680 | -7/Factory | Entered another Factory area 2680 | -6/Factory | Evolved 2 slots: Utility x2 2681 | -6/Factory | Caught up to 7R-MNS 2723 | -6/Factory | Build established: Scavenger-Gunner 3060 | -6/Factory | Destroyed 7 combat bots 3176 | -6/Factory | Allied Derelicts emerged from ambush trap array 3216 | -6/Factory | Fabricated Mni. Grenade Launcher? 3253 | -6/Factory | Discovered new exit (range 14) 3307 | -6/Factory | Entered another Factory area 3307 | -5/Factory | Evolved 2 slots: Propulsion x1, Utility x1 3344 | -5/Factory | Discovered new exit (range 10) 3384 | -5/Factory | Build established: Gunner 3429 | -5/Factory | Lost 3 parts (3n) 3749 | -5/Factory | Lost 5 parts (2n2u1w) 3766 | -5/Factory | Build established: Scavenger-Gunner 3925 | -5/Factory | Lost 7 parts (2p2n2u1w) 4073 | -5/Factory | Lost 6 parts (1n2u3w) 4217 | -5/Factory | Lost 10 parts (2p1n1u6w) 4503 | -5/Factory | Build established: Scavenger-Mutant 4550 | -5/Factory | Core integrity fell below 50% 4606 | -5/Factory | System corruption reached 10% 4636 | -5/Factory | Lost 7 parts (1p3u3w) 4640 | -5/Factory | Core integrity fell below 20% 4670 | -5/Factory | Destroyed by P-70 Sage with Tesla Rifle Last Messages --------------- 04628_ K-01 Serf cleans the Nuclear Reactor. 04631_ Slammed into P-70 Sage. 04636_ Focal Shield destroyed. 04638_ Slammed into P-70 Sage. 04638_ K-01 Serf cleans the Nuclear Reactor. 04642_ Remote Datajack destroyed. 04645_ Lrg. Storage Unit destroyed. 04647_ K-01 Serf cleans the Nuclear Reactor. 04648_ Imp. Heat Sink destroyed. 04649_ Slammed into W-25 Informer. 04649_ Imp. Target Analyzer broken. 04649_ Destabilizing: Short circuit. 04653_ Slammed into P-70 Sage. 04655_ Broken Imp. Target Analyzer destroyed. 04656_ System corrupted: Matter fused (-10). 04656_ Acquired 10 matter. 04656_ Slammed into P-70 Sage. Map ----- +----------------------------------------------------+ | ????# #?# #????????????????????????????? | | ????########### #?# #????????????????????????????? | | ??????????????# #?# #????????????????????????????? | | ???????????####+###+#????????????????????????????? | | ?????????### #????????????????????????????? | | ?????????? / """"" #????????????????????????????? | | ???????????# """"" #####?###????????????????????? | | ???????????# """ %#############????????????????? | | ???????????# + # [[ ! #????????????????? | | ???????????# """" # # #????????????????? | | ???????????# """ # # #????????????????? | | ???????????#! """ + # [ #??????????????+?? | | ???????????# # # #????????????? #?? | | ???????????########## # #???????????? #?? | | ??????????????? # # ######?????? #?? | | ??????????????"""" # # ! # ####?? # ? | | ????????????? """" # #########+########## ##? | | ????????????? """" # #?? | | ????????????"?"""" # % % #?? | | ??????????????"""" + #?? | | ??????????????"""" # #?? | | ???????????? # % #?? | | ??????????? ##### ################ #?? | | ??????????? !?####k## ?? ??????? #?? | | ?????????? ????#p#? ?? ????????#?? | | ?????????? ?????#@#? ?? ?????????? | | ??????????#########?????#%#? """ "???????????? | | ????????????????????????#%#? """"" """???????????? | | ????????????????????????#R#? """"" """???????????? | | ????????????????????????# #? ?????????????????? | | ????????????????????????# #?? ???????????????????? | | ????????????????????????#+#??"???????????????????? | | ???????????????????????? ??"???????????????????? | | ????????????????????????" ??????????????????????? | | ????????????????????????" ??????????????????????? | | ????????????????????????" !??????????????????????? | | ???????????????????????? ??????????????????????? | | ????????????????????????!= ??????????????????????? | | ????????????????????????!= #?????????????????????? | | ????????????????????????== #?????????????????????? | | ???????????????????????? #?????????????????????? | | ????????????????????????" ??????????????????????? | | ????????????????????????" ??????????????????????? | | ????????????????????????? ??????????????????????? | | ?????????????????????????????????????????????????? | | ?????????????????????????????????????????????????? | | ?????????????????????????????????????????????????? | | ?????????????????????????????????????????????????? | | ?????????????????????????????????????????????????? | | ?????????????????????????????????????????????????? | +----------------------------------------------------+ Best States ------------- Heat Dissipation 73 Coolant Potential 50 Energy Generation 33 Energy Capacity 900 Matter Stores 300 Matter Capacity 350 Sight Range 21 Terrain Scan Density 10 Armor Coverage 225 Resistance: KI 20 Resistance: EM 20 Phase Shifting 5 Evasion (%) 55 Targeting Accuracy 6 Target Analysis 6 Recoil Reduction 6 Particle Charging 20 Offensive Hacking 10 Item Schematics ----------------- Mni. Grenade Launcher | -8/Materials | Scanalyzed Robot Schematics ------------------ None Fabricated ------------ Mni. Grenade Launcher | x1 | -6/Factory Repaired ---------- Mni. Grenade Launcher | 6% | -8/Materials Sub. Power Source | 26% | -8/Materials | Broken Alien Tech Used ----------------- None Achievements -------------- Just What I Needed Remodeling Challenges ------------ None Game ------ Seed GreatChipComputer Manual? 0 Play Time 01:23:14 Cumulative 8.9 hours Start 2025.06.21 @ 14:53:05 End 2025.06.21 @ 18:14:51 Sessions 4 Manual Loads 0 Difficulty Rogue Special Mode None Game No. 9 Rogue 9 Adventurer 0 Explorer 0 Win Type - Total 0 Types 0/0/0/0/0/0/0/0/0/0 Lore% 3 Gallery% 15 Achievement% 13 Wizard Run 0 Options --------- Layout 1 ASCII 0 Keyboard 0 Movement Mouse Keybinds 0 Fullscreen 2 Font 48/Smallcaps Map View 50x35 Zoom Use 0% Tactical HUD 1 Map Filters NONE Filters NONE Steam 0 RUN: a2e06050-7d08-4c5b-8543-0a3d26a6484e